bitfinex/quotes_BTCUSD_20240620
["timestamp","ask_amount","ask_price","bid_price","bid_amount"]
[1718848334121,0.30651,65251.0,65244.0,0.00324]
[1718848334326,0.004,65252.0,65244.0,0.00324]
[1718848334717,0.00086,65245.0,65244.0,0.00324]
[1718848335020,0.00086,65245.0,65244.0,0.00424]
[1718848335223,0.00086,65245.0,65244.0,0.00524]
[1718848335638,0.00086,65245.0,65244.0,0.15851]
[1718848335836,0.00086,65245.0,65244.0,0.15751]
[1718848336303,0.00086,65245.0,65244.0,0.15727]
[1718848336561,0.00086,65245.0,65244.0,0.17727]
[1718848336692,0.00086,65245.0,65244.0,0.17627]
[1718848337301,0.00086,65245.0,65244.0,0.509811]
[1718848337500,0.00086,65245.0,65244.0,0.678611]
[1718848338451,0.00086,65245.0,65244.0,0.35207]
[1718848339274,0.00086,65245.0,65244.0,1.126752]
[1718848340575,0.00477561,65253.0,65248.0,0.02]
[1718848340778,1.224311,65269.0,65251.0,0.1552]
[1718848340779,0.00477561,65252.0,65251.0,0.1552]
[1718848340984,0.00477561,65252.0,65251.0,0.3005]
[1718848341157,0.153234,65260.0,65251.0,0.3005]
[1718848341158,0.00477531,65259.0,65251.0,0.3005]
[1718848341313,0.00477531,65258.0,65251.0,0.3005]
[1718848341515,0.00477531,65257.0,65251.0,0.3005]
[1718848341699,0.00477531,65256.0,65251.0,0.3205]
[1718848341902,0.004,65252.0,65251.0,0.3205]
[1718848342099,0.01,65252.0,65251.0,0.3215]
[1718848342302,0.01477531,65252.0,65251.0,0.3015]
[1718848342969,0.00877531,65252.0,65251.0,0.3005]
[1718848343328,0.00877531,65252.0,65251.0,0.3015]
[1718848343592,0.00477531,65252.0,65251.0,0.3015]
[1718848343751,0.00477531,65252.0,65251.0,0.3025]
[1718848343946,0.00477531,65256.0,65251.0,0.3025]
[1718848344149,0.00477531,65255.0,65251.0,0.3025]
[1718848344378,0.00477531,65254.0,65251.0,0.3015]
[1718848344542,0.00477531,65253.0,65251.0,0.3015]
[1718848344740,0.004,65252.0,65251.0,0.3005]
[1718848344944,0.153263,65248.0,65239.0,0.3211]
[1718848345146,0.440032,65246.0,65235.0,0.145]
[1718848345507,0.306542,65244.0,65235.0,0.145]
[1718848345709,0.306556,65241.0,65235.0,0.145]
[1718848345923,0.00477531,65243.0,65231.0,0.6202]
[1718848345924,0.00477531,65240.0,65231.0,0.6202]
[1718848346123,0.15805731,65239.0,65231.0,0.6202]
[1718848346275,0.00477694,65238.0,65231.0,0.6202]
[1718848346476,0.00477694,65238.0,65235.0,0.002]
[1718848346926,0.00477694,65238.0,65231.0,0.6202]
[1718848347069,0.00477694,65238.0,65232.0,0.023]
[1718848347565,0.00477694,65237.0,65232.0,0.023]
[1718848347764,0.15328,65240.0,65232.0,0.023]
[1718848347765,0.00477694,65236.0,65232.0,0.023]
[1718848347921,0.00477694,65235.0,65232.0,0.023]
[1718848348117,0.00477694,65234.0,65232.0,0.023]
[1718848348327,0.00477694,65233.0,65232.0,0.023]
[1718848348502,0.00477694,65233.0,65228.0,0.1681]
[1718848348701,0.00477694,65232.0,65228.0,0.1681]
[1718848349574,0.15807594,65232.0,65228.0,0.1681]
[1718848349907,0.00477694,65231.0,65228.0,0.1681]
[1718848350139,0.00477694,65231.0,65225.0,0.04134142]
[1718848350318,0.14417694,65231.0,65225.0,0.04134142]
[1718848350532,0.459939,65226.0,65225.0,0.04134142]
[1718848350861,0.46471594,65226.0,65225.0,0.04134142]
[1718848352138,0.46471594,65226.0,65225.0,0.04334142]
[1718848352337,0.46471594,65226.0,65225.0,0.04134142]
[1718848352703,0.46571594,65226.0,65225.0,0.04334142]
[1718848353323,0.46671594,65226.0,65225.0,0.05134142]
[1718848354727,0.46671594,65226.0,65225.0,0.05129252]
[1718848354728,1.23252906,65226.0,65225.0,0.05129252]
[1718848354986,1.47482906,65226.0,65225.0,0.05129252]
[1718848355213,1.49482906,65226.0,65225.0,0.05129252]
[1718848355560,1.49382906,65226.0,65225.0,0.04929252]
[1718848355991,1.66722906,65226.0,65225.0,0.04129252]
[1718848356249,2.27527706,65226.0,65225.0,0.04129252]
[1718848356654,2.27227706,65226.0,65225.0,0.04129252]
[1718848356892,2.59290306,65226.0,65225.0,0.04129252]
[1718848357447,2.60212612,65226.0,65225.0,0.04229252]
[1718848357655,2.60690486,65226.0,65225.0,0.04229252]
[1718848358374,2.59290486,65226.0,65225.0,0.04229252]
[1718848358575,2.59290486,65226.0,65225.0,0.04129252]
[1718848358774,2.26627886,65226.0,65225.0,0.04129252]
[1718848359133,1.80712484,65226.0,65225.0,0.04129252]
[1718848359346,1.82112484,65226.0,65225.0,0.04129252]
[1718848359546,1.66123084,65226.0,65225.0,0.04129252]
[1718848360097,1.64723084,65226.0,65225.0,0.04129252]
[1718848360421,1.34060484,65226.0,65225.0,0.04129252]
[1718848360635,1.03790484,65226.0,65225.0,0.04229252]
[1718848361198,1.02390484,65226.0,65225.0,0.04129252]
[1718848361578,1.04990484,65226.0,65225.0,0.04229252]
[1718848362023,1.03590484,65226.0,65225.0,0.04229252]
[1718848362412,1.04990484,65226.0,65225.0,0.04229252]
[1718848362608,1.03590484,65226.0,65225.0,0.04229252]
[1718848363052,1.04990484,65226.0,65225.0,0.04229252]
[1718848363267,0.13077872,65226.0,65225.0,0.35809252]
[1718848363437,0.03077872,65226.0,65225.0,0.35809252]
[1718848363611,0.03077872,65226.0,65225.0,0.43437424]
[1718848363800,0.01877872,65226.0,65225.0,0.43337424]
[1718848364207,0.03077872,65226.0,65225.0,0.43437424]
[1718848364624,0.03077872,65226.0,65225.0,0.35809252]
[1718848365005,0.00477872,65226.0,65225.0,0.35709252]
[1718848365132,0.00577872,65226.0,65225.0,0.36209252]
[1718848365317,0.00577872,65226.0,65225.0,0.51640752]
[1718848365520,0.47405561,65239.0,65226.0,0.153312]
[1718848365521,0.153292,65235.0,65226.0,0.153312]
[1718848365725,0.00477729,65234.0,65227.0,0.023]
[1718848366173,0.15807429,65233.0,65228.0,0.07628172]
[1718848366400,0.00477729,65232.0,65228.0,0.07628172]
[1718848366611,0.00477729,65231.0,65228.0,0.07628172]
[1718848366813,0.00477724,65230.0,65228.0,0.07628172]
[1718848367006,0.00477724,65229.0,65228.0,0.07628172]
[1718848367215,0.00477724,65233.0,65228.0,0.07628172]
[1718848367410,0.00477724,65232.0,65229.0,0.1419]
[1718848367591,0.00477724,65231.0,65229.0,0.1419]
[1718848367788,0.00477724,65230.0,65229.0,0.1419]
[1718848368224,0.00477724,65233.0,65229.0,0.1419]
[1718848369100,0.00477724,65233.0,65229.0,0.1449]
[1718848369883,0.00477724,65233.0,65229.0,0.1419]
[1718848370283,0.00577724,65233.0,65229.0,0.1419]
[1718848370471,0.00477724,65232.0,65229.0,0.1419]
[1718848371008,0.001,65233.0,65229.0,0.1419]
[1718848371485,0.00477724,65232.0,65229.0,0.1419]
[1718848371925,0.00477724,65232.0,65229.0,0.1439]
[1718848372307,0.00477724,65232.0,65229.0,0.1419]
[1718848372743,0.00477724,65232.0,65229.0,0.14283372]
[1718848373903,0.00477724,65232.0,65229.0,0.14183372]
[1718848374300,0.00477724,65232.0,65229.0,0.14383372]
[1718848376289,0.15807624,65232.0,65229.0,0.14383372]
[1718848376490,0.00477724,65231.0,65229.0,0.14383372]
[1718848377290,0.00477724,65231.0,65229.0,0.14183372]
[1718848377737,0.00477724,65231.0,65229.0,0.14583372]
[1718848379117,0.00477724,65231.0,65229.0,0.14683372]
[1718848379705,1.25046236,65230.0,65229.0,0.005]
[1718848379920,1.97216936,65230.0,65229.0,0.005]
[1718848380349,1.99203351,65230.0,65229.0,0.005]
[1718848380548,2.39481151,65230.0,65229.0,0.005]
[1718848380779,2.49481151,65230.0,65229.0,0.001]
[1718848381226,2.49981151,65230.0,65229.0,0.002]
[1718848381645,2.49481151,65230.0,65229.0,0.0016]
[1718848381849,1.99203351,65230.0,65229.0,0.0016]
[1718848382052,2.00603351,65230.0,65229.0,0.0016]
[1718848382214,2.81421051,65230.0,65229.0,0.0016]
[1718848382635,2.80021051,65230.0,65229.0,0.0016]
[1718848382836,2.52220451,65230.0,65229.0,0.0016]
[1718848383010,2.20048651,65230.0,65229.0,0.0016]
[1718848385419,2.18048651,65230.0,65229.0,0.0016]
[1718848385621,2.13532751,65230.0,65229.0,0.0016]
[1718848385830,2.13532751,65230.0,65225.0,0.04129252]
[1718848385831,1.293191,65226.0,65225.0,0.04129252]
[1718848386042,1.293191,65226.0,65208.0,0.009471]
[1718848386043,0.02,65211.0,65208.0,0.009471]
[1718848386241,0.17256112,65211.0,65208.0,0.009471]
[1718848386444,0.27733836,65211.0,65208.0,0.009471]
[1718848386649,1.65747036,65211.0,65208.0,0.009471]
[1718848386849,1.79423036,65211.0,65208.0,0.009471]
[1718848387502,2.89294536,65211.0,65208.0,0.009471]
[1718848387660,2.91280951,65211.0,65208.0,0.009471]
[1718848388078,3.01280951,65211.0,65208.0,0.009471]
[1718848388283,2.99494536,65211.0,65208.0,0.009471]
[1718848388482,2.80527836,65211.0,65208.0,0.009471]
[1718848388884,2.70327836,65211.0,65208.0,0.009471]
[1718848389107,2.66668436,65211.0,65208.0,0.009471]
[1718848389307,2.76668436,65211.0,65208.0,0.009471]
[1718848389513,0.02,65205.0,65204.0,0.009471]
[1718848389715,0.94952436,65205.0,65204.0,0.009471]
[1718848389952,1.35624836,65205.0,65204.0,0.009471]
[1718848390156,3.01381436,65205.0,65204.0,0.009471]
[1718848390316,3.04975536,65205.0,65204.0,0.009471]
[1718848390671,2.96009536,65205.0,65204.0,0.009471]
[1718848390878,2.96009849,65205.0,65204.0,0.009471]
[1718848391010,2.96369849,65205.0,65204.0,0.009471]
[1718848391412,2.15549349,65205.0,65204.0,0.009471]
[1718848391800,2.16949349,65205.0,65204.0,0.009471]
[1718848392204,2.15549349,65205.0,65204.0,0.009471]
[1718848392409,2.16949349,65205.0,65204.0,0.009471]
[1718848393032,2.32204763,65205.0,65204.0,0.009471]
[1718848393209,2.32204763,65205.0,65204.0,0.00541829]
[1718848393210,2.26949349,65205.0,65204.0,0.00541829]
[1718848393861,2.28349349,65205.0,65204.0,0.00541829]
[1718848394271,2.52621749,65205.0,65204.0,0.00541829]
[1718848394595,2.62621749,65205.0,65204.0,0.00541829]
[1718848394806,2.64021749,65205.0,65204.0,0.00541829]
[1718848395208,2.23349349,65205.0,65204.0,0.00541829]
[1718848395429,1.69457549,65205.0,65204.0,0.00541829]
[1718848395781,2.19821749,65205.0,65204.0,0.00541829]
[1718848395998,2.60494149,65205.0,65204.0,0.00541829]
[1718848396874,2.28117968,65205.0,65204.0,0.00541829]
[1718848397087,2.43454168,65205.0,65204.0,0.00541829]
[1718848397504,2.48454168,65205.0,65204.0,0.00541829]
[1718848397711,2.48454168,65205.0,65204.0,0.0008144]
[1718848397712,2.12989968,65205.0,65204.0,0.0008144]
[1718848398134,2.14389968,65205.0,65204.0,0.0008144]
[1718848398563,1.500303,65203.0,65195.0,0.07628172]
[1718848398763,2.12724449,65203.0,65194.0,0.009471]
[1718848398971,5.82592049,65203.0,65202.0,0.22770448]
[1718848399182,6.43154449,65203.0,65202.0,0.22770448]
[1718848399581,5.89675249,65203.0,65202.0,0.22770448]
[1718848400226,5.91075249,65203.0,65202.0,0.22241405]
[1718848400477,4.90507016,65203.0,65202.0,0.22241405]
[1718848400650,4.81613216,65203.0,65202.0,0.22241405]
[1718848400869,4.71613216,65203.0,65202.0,0.22241405]
[1718848401076,3.36729216,65203.0,65202.0,0.22241405]
[1718848401648,3.38129216,65203.0,65202.0,0.22241405]
[1718848402470,3.35640416,65203.0,65202.0,0.22241405]
[1718848402792,3.30097916,65203.0,65202.0,0.22241405]
[1718848402972,2.29791116,65203.0,65202.0,0.22241405]
[1718848403151,0.59678204,65203.0,65202.0,0.22241405]
[1718848403356,0.03668104,65203.0,65202.0,0.53471405]
[1718848403602,0.19004804,65203.0,65202.0,0.53471405]
[1718848404092,0.02268104,65203.0,65202.0,0.53471405]
[1718848404244,0.17604804,65203.0,65202.0,0.53471405]
[1718848404424,0.17214804,65203.0,65202.0,0.53471405]
[1718848404638,0.17214664,65203.0,65202.0,0.53471405]
[1718848404835,0.26014664,65203.0,65202.0,0.53471405]
[1718848405221,0.26014664,65203.0,65202.0,0.53571405]
[1718848405449,0.56688064,65203.0,65202.0,0.53571405]
[1718848405804,0.87361464,65203.0,65202.0,0.22341405]
[1718848406015,0.56688064,65203.0,65202.0,0.22341405]
[1718848406163,0.10677964,65203.0,65202.0,0.22341405]
[1718848406372,0.16014664,65203.0,65202.0,0.22341405]
[1718848406607,0.10677953,65203.0,65202.0,0.22341405]
[1718848406767,0.10677953,65203.0,65202.0,0.53421405]
[1718848406967,0.10477953,65203.0,65202.0,0.53421405]
[1718848407509,0.25814653,65203.0,65202.0,0.36191405]
[1718848407734,0.87161453,65203.0,65202.0,0.22341405]
[1718848408081,0.89161453,65203.0,65202.0,0.22341405]
[1718848408596,0.89551453,65203.0,65202.0,0.22341405]
[1718848408819,0.89551453,65203.0,65202.0,0.22241405]
[1718848409236,0.87551453,65203.0,65202.0,0.22241405]
[1718848409376,0.10867953,65203.0,65202.0,0.52881405]
[1718848409796,0.26204653,65203.0,65202.0,0.52881405]
[1718848410627,0.27104653,65203.0,65202.0,0.52881405]
[1718848411043,0.28204653,65203.0,65202.0,0.52881405]
[1718848411271,0.27304653,65203.0,65202.0,0.52881405]
[1718848411719,0.26914653,65203.0,65202.0,0.53081405]
[1718848412223,0.10477953,65203.0,65202.0,0.52881405]
[1718848412349,0.00477953,65203.0,65202.0,0.52881405]
[1718848412765,0.1,65206.0,65203.0,0.1374]
[1718848412972,0.00477922,65205.0,65204.0,0.1799]
[1718848414164,0.00477922,65205.0,65204.0,0.3173]
[1718848414605,0.00477922,65205.0,65203.0,0.07628172]
[1718848414810,0.1,65209.0,65205.0,0.1374]
[1718848415007,0.154208,65211.0,65207.0,0.1374]
[1718848415008,0.00477886,65208.0,65207.0,0.1374]
[1718848415209,0.00477886,65209.0,65207.0,0.3173]
[1718848415367,0.1,65210.0,65207.0,0.3173]
[1718848415368,0.00477886,65208.0,65207.0,0.3173]
[1718848416004,0.00477886,65209.0,65207.0,0.3173]
[1718848416169,0.00477886,65208.0,65207.0,0.3173]
[1718848416970,0.154208,65211.0,65204.0,0.002]
[1718848416971,0.00477882,65209.0,65208.0,0.3109]
[1718848417130,0.00477871,65209.0,65208.0,0.3109]
[1718848417359,0.01077871,65209.0,65208.0,0.3109]
[1718848417562,0.00477871,65209.0,65208.0,0.3109]
[1718848417896,0.00477871,65210.0,65208.0,0.3109]
[1718848418101,0.00477871,65210.0,65208.0,0.3059]
[1718848418308,0.00877871,65209.0,65208.0,0.3059]
[1718848418563,0.01477871,65209.0,65208.0,0.3059]
[1718848418749,0.01077871,65209.0,65208.0,0.3059]
[1718848418921,0.00477871,65209.0,65208.0,0.3059]
[1718848419208,0.00477871,65210.0,65208.0,0.3059]
[1718848419409,0.01177871,65210.0,65208.0,0.3059]
[1718848419569,0.007,65210.0,65209.0,0.460059]
[1718848419794,0.01177865,65210.0,65209.0,0.460059]
[1718848420452,0.01177865,65210.0,65209.0,0.961765]
[1718848420800,0.00477865,65210.0,65209.0,0.941765]
[1718848420968,0.00977865,65210.0,65209.0,0.941765]
[1718848421109,0.00977865,65210.0,65209.0,1.094265]
[1718848421516,0.00477865,65210.0,65209.0,1.094265]
[1718848421751,0.00477865,65210.0,65209.0,1.097265]
[1718848421952,0.00577865,65210.0,65209.0,1.096265]
[1718848422326,0.001,65210.0,65209.0,1.098965]
[1718848422527,0.001,65210.0,65209.0,1.577671]
[1718848422727,0.00086,65211.0,65210.0,1.109752]
[1718848422923,0.00086,65211.0,65210.0,1.66829584]
[1718848424752,0.00086,65211.0,65210.0,1.67129584]
[1718848424753,0.00186,65211.0,65210.0,1.67129584]
[1718848425735,0.00086,65211.0,65210.0,1.66829584]
[1718848425975,0.00286,65211.0,65210.0,1.67329584]
[1718848427348,0.00186,65211.0,65210.0,1.67129584]
[1718848427563,0.00286,65211.0,65210.0,1.67329584]
[1718848428100,0.00267541,65211.0,65210.0,1.67329584]
[1718848429080,0.00267541,65211.0,65210.0,1.82229584]
[1718848436153,0.00167541,65211.0,65210.0,1.81929584]
[1718848436324,0.00267541,65211.0,65210.0,1.82229584]
[1718848436624,0.00167541,65211.0,65210.0,1.81929584]
[1718848436824,0.00067541,65211.0,65210.0,1.81729584]
[1718848437180,0.00167541,65211.0,65210.0,1.83129584]
[1718848437834,0.00167541,65211.0,65210.0,2.33569684]
[1718848437835,0.00067541,65211.0,65210.0,2.33569684]
[1718848438264,0.00067541,65211.0,65210.0,2.34969684]
[1718848438685,0.00067541,65211.0,65210.0,2.33569684]
[1718848438892,0.00067541,65211.0,65210.0,2.34969684]
[1718848439199,0.00067541,65211.0,65210.0,2.33569684]
[1718848439403,0.00067541,65211.0,65210.0,2.34969684]
[1718848439943,0.00067541,65211.0,65210.0,2.33569684]
[1718848440145,0.00167541,65211.0,65210.0,2.34969684]
[1718848440348,0.00167541,65211.0,65210.0,2.36369684]
[1718848440752,0.00067541,65211.0,65210.0,1.68229584]
[1718848440991,0.00067541,65211.0,65210.0,1.84529584]
[1718848441190,0.00167541,65211.0,65210.0,1.84529584]
[1718848441801,0.00067541,65211.0,65210.0,1.83129584]
[1718848442233,0.00167541,65211.0,65210.0,1.84529584]
[1718848442392,0.00167541,65211.0,65210.0,1.83129584]
[1718848442573,0.00167541,65211.0,65210.0,2.50169684]
[1718848442774,0.00167541,65211.0,65210.0,2.05999584]
[1718848442775,0.00267541,65211.0,65210.0,2.05999584]
[1718848443220,0.00267541,65211.0,65210.0,2.04599584]
[1718848443221,0.00167541,65211.0,65210.0,2.04599584]
[1718848443778,0.00167541,65211.0,65210.0,2.05899584]
[1718848444096,0.00267541,65211.0,65210.0,2.05899584]
[1718848444282,0.00267541,65211.0,65210.0,1.95699584]
[1718848444513,0.00167541,65211.0,65210.0,1.94399584]
[1718848444710,0.00267541,65211.0,65210.0,1.95599584]
[1718848444916,0.00267541,65211.0,65210.0,2.05799584]
[1718848445163,0.00267541,65211.0,65210.0,1.95599584]
[1718848446137,0.00267541,65211.0,65210.0,2.05799584]
[1718848448887,0.00267541,65211.0,65210.0,2.1853873]
[1718848449285,0.00267541,65211.0,65210.0,2.18538961]
[1718848449525,0.00267541,65211.0,65210.0,2.17538961]
[1718848450428,0.00267541,65211.0,65210.0,2.48209061]
[1718848450659,0.00267541,65211.0,65210.0,2.17538961]
[1718848451797,0.1437,65234.0,65210.0,2.17538961]
[1718848451798,0.1437,65234.0,65212.0,0.1617]
[1718848451984,0.1437,65234.0,65232.0,0.302298]
[1718848451985,0.00477672,65233.0,65232.0,0.302298]
[1718848452290,0.00477672,65233.0,65232.0,0.149]
[1718848452485,0.00477672,65233.0,65232.0,0.302298]
[1718848453863,0.00477672,65233.0,65232.0,0.608895]
[1718848454033,0.00477672,65233.0,65232.0,0.302298]
[1718848454407,0.00477672,65233.0,65232.0,0.304298]
[1718848455221,0.00477652,65233.0,65232.0,0.304298]
[1718848455625,0.00477652,65233.0,65232.0,0.610895]
[1718848455831,0.17658,65240.0,65232.0,0.610895]
[1718848455832,0.17658,65240.0,65234.0,0.153292]
[1718848456073,0.00477641,65239.0,65234.0,0.153292]
[1718848456450,0.00477641,65239.0,65232.0,0.457597]
[1718848456451,0.00477641,65239.0,65235.0,0.153291]
[1718848456819,0.01245641,65239.0,65235.0,0.153291]
[1718848457012,0.00477641,65239.0,65238.0,0.459853]
[1718848457276,0.3234,65250.0,65243.0,0.153273]
[1718848457277,0.01723177,65250.0,65243.0,0.153273]
[1718848457406,0.00477594,65249.0,65244.0,0.22528172]
[1718848457608,0.00477594,65249.0,65244.0,0.37854972]
[1718848458816,0.00477594,65249.0,65244.0,0.37954972]
[1718848459221,0.00477594,65249.0,65244.0,0.154268]
[1718848459444,0.00477594,65249.0,65244.0,0.001]
[1718848459649,0.00477594,65248.0,65245.0,0.023]
[1718848459845,0.00477594,65247.0,65246.0,0.153266]
[1718848460053,0.00477594,65247.0,65245.0,0.023]
[1718848460054,0.00477594,65249.0,65245.0,0.023]
[1718848460308,0.00477594,65249.0,65248.0,0.153261]
[1718848461979,0.00477594,65249.0,65231.0,0.01]
[1718848461980,0.00768,65245.0,65231.0,0.01]
[1718848462195,0.1797,65240.0,65231.0,0.01]
[1718848462403,0.00477594,65239.0,65237.0,0.153285]
[1718848462830,0.00477594,65239.0,65238.0,0.153284]
[1718848463001,0.00477594,65239.0,65236.0,0.306578]
[1718848463239,0.1417,65238.0,65232.0,0.153297]
[1718848463440,0.00477594,65237.0,65230.0,0.306607]
[1718848463644,0.00477594,65237.0,65230.0,0.45916812]
[1718848463858,0.00477594,65237.0,65223.0,0.05]
[1718848463859,0.00768,65234.0,65223.0,0.306636]
[1718848464066,0.00768,65234.0,65222.0,0.306641]
[1718848464067,0.00768,65231.0,65225.0,0.153314]
[1718848464270,0.14247594,65233.0,65228.0,0.153307]
[1718848464519,0.14247594,65233.0,65227.0,0.07628172]
[1718848464520,0.00768,65231.0,65227.0,0.22959172]
[1718848464725,0.00477594,65230.0,65227.0,0.22959172]
[1718848465889,0.00477594,65230.0,65220.0,0.08628172]
[1718848466089,0.00477594,65230.0,65222.0,0.306643]
[1718848466311,0.00477594,65230.0,65224.0,0.153316]
[1718848466558,0.00477594,65230.0,65225.0,0.023]
[1718848466969,0.00768,65231.0,65225.0,0.023]
[1718848467110,0.00477711,65230.0,65225.0,0.023]
[1718848467314,0.00768,65229.0,65225.0,0.023]
[1718848467520,0.00477711,65228.0,65225.0,0.023]
[1718848467716,0.153292,65235.0,65227.0,0.007]
[1718848467918,0.01433134,65234.0,65227.0,0.007]
[1718848468117,0.01433134,65233.0,65223.0,0.023]
[1718848468340,0.01433134,65233.0,65220.0,0.07628172]
[1718848468341,0.306605,65231.0,65220.0,0.07628172]
[1718848468538,0.306605,65231.0,65210.0,0.38298072]
[1718848468539,0.153316,65225.0,65210.0,0.07628172]
[1718848468697,0.00477711,65224.0,65211.0,0.15256112]
[1718848468894,0.306647,65222.0,65210.0,0.07628172]
[1718848469100,0.16765877,65221.0,65210.0,0.07628172]
[1718848469299,0.01433277,65220.0,65210.0,0.07628172]
[1718848469528,0.01433277,65219.0,65210.0,0.07628172]
[1718848469728,0.153326,65221.0,65210.0,0.07628172]
[1718848469729,0.01433277,65218.0,65210.0,0.07628172]
[1718848469952,0.01433277,65217.0,65210.0,0.07628172]
[1718848470123,0.00477711,65216.0,65210.0,0.07628172]
[1718848470467,0.00477711,65215.0,65213.0,0.149]
[1718848471786,0.00477711,65214.0,65213.0,0.149]
[1718848472023,0.00477711,65218.0,65213.0,0.159]
[1718848472263,0.623125,65227.0,65222.0,0.07628172]
[1718848472264,0.1,65226.0,65222.0,0.07628172]
[1718848472462,0.01433283,65225.0,65222.0,0.07628172]
[1718848472630,0.01433283,65224.0,65222.0,0.07628172]
[1718848472830,0.1,65226.0,65222.0,0.07628172]
[1718848472831,0.01433283,65223.0,65222.0,0.07628172]
[1718848473614,0.01433283,65223.0,65218.0,0.22528172]
[1718848473817,0.01433283,65222.0,65219.0,0.023]
[1718848474013,0.01433283,65221.0,65219.0,0.023]
[1718848474212,0.00477761,65220.0,65219.0,0.023]
[1718848474615,0.00477761,65225.0,65222.0,0.004]
[1718848474833,0.00955513,65224.0,65222.0,0.004]
[1718848475034,0.00477756,65223.0,65219.0,0.023]
[1718848475235,0.00477756,65223.0,65219.0,0.034]
[1718848475557,0.3223,65231.0,65220.0,0.153325]
[1718848475558,0.00477756,65222.0,65220.0,0.153325]
[1718848475691,0.00477756,65221.0,65220.0,0.153325]
[1718848475935,0.1,65230.0,65222.0,0.006]
[1718848476131,0.01433199,65229.0,65222.0,0.006]
[1718848476372,0.01433199,65228.0,65219.0,0.187329]
[1718848476574,0.1,65230.0,65219.0,0.187329]
[1718848476575,0.01433199,65227.0,65219.0,0.187329]
[1718848476778,0.01433199,65226.0,65219.0,0.176329]
[1718848476999,0.00477734,65225.0,65220.0,0.012]
[1718848477156,0.00477734,65224.0,65220.0,0.012]
[1718848477358,0.00477734,65223.0,65221.0,0.652849]
[1718848477586,0.1,65230.0,65223.0,0.153319]
[1718848477739,0.0143316,65229.0,65224.0,0.023]
[1718848478128,0.0143316,65228.0,65224.0,0.023]
[1718848478253,0.1,65230.0,65224.0,0.023]
[1718848478254,0.0143316,65227.0,65224.0,0.023]
[1718848478458,0.0047772,65226.0,65224.0,0.023]
[1718848478881,0.1828,65231.0,65224.0,0.938587]
[1718848478882,0.0047772,65225.0,65224.0,0.938587]
[1718848479085,0.1828,65231.0,65228.0,0.153307]
[1718848479285,0.004777,65230.0,65228.0,0.153307]
[1718848479719,0.00477697,65229.0,65228.0,0.459924]
[1718848479954,0.00477696,65229.0,65228.0,0.482922]
[1718848480160,0.10477696,65238.0,65228.0,0.482922]
[1718848480363,0.01433089,65237.0,65229.0,0.176305]
[1718848480567,0.01433089,65236.0,65229.0,0.176305]
[1718848480697,0.01433089,65235.0,65229.0,0.023]
[1718848480901,0.01433089,65234.0,65233.0,0.85276372]
[1718848481103,0.153249,65253.0,65237.0,0.01]
[1718848481301,0.153249,65253.0,65243.0,0.149]
[1718848481302,0.3213,65251.0,65243.0,0.149]
[1718848481547,0.0143284,65250.0,65243.0,0.149]
[1718848481725,0.3213,65251.0,65241.0,0.153277]
[1718848481726,0.0143284,65249.0,65241.0,0.153277]
[1718848481925,0.0143284,65248.0,65241.0,0.153277]
[1718848482124,0.0143284,65247.0,65241.0,0.153277]
[1718848482328,0.0143284,65246.0,65241.0,0.153277]
[1718848482526,0.0095521,65245.0,65241.0,0.153277]
[1718848482793,0.01432823,65245.0,65241.0,0.153277]
[1718848482942,0.00477613,65244.0,65243.0,0.001]
[1718848483147,0.0095521,65244.0,65241.0,0.153277]
[1718848483330,0.00477613,65243.0,65241.0,0.153277]
[1718848483550,0.00477613,65242.0,65241.0,0.154277]
[1718848483750,0.00477613,65242.0,65241.0,0.153277]
[1718848484192,0.15805113,65242.0,65229.0,0.176304]
[1718848484398,0.306542,65244.0,65227.0,0.15331]
[1718848484399,0.465182,65239.0,65227.0,0.15331]
[1718848484548,0.465182,65239.0,65221.0,0.01]
[1718848484549,0.01432894,65238.0,65221.0,0.306646]
[1718848484752,0.153297,65233.0,65221.0,0.153323]
[1718848485027,0.01,65240.0,65219.0,0.1349]
[1718848485028,0.3119,65231.0,65219.0,0.1349]
[1718848485330,0.01432894,65230.0,65220.0,0.30588712]
[1718848485455,0.01432894,65229.0,65220.0,0.15256112]
[1718848485662,0.01432894,65228.0,65222.0,0.153321]
[1718848485866,0.01432894,65227.0,65222.0,0.153321]
[1718848486093,0.00477613,65227.0,65221.0,0.011]
[1718848486245,0.00477613,65226.0,65222.0,0.023]
[1718848486451,0.00477613,65225.0,65219.0,0.176329]
[1718848486755,0.465202,65231.0,65219.0,0.176329]
[1718848486756,0.00477613,65224.0,65220.0,0.160326]
[1718848487001,0.00477613,65223.0,65221.0,0.023]
[1718848487368,0.00477613,65222.0,65221.0,0.01]
[1718848487778,0.00477613,65227.0,65221.0,0.004]
[1718848487974,1.09271,65222.0,65221.0,0.004]
[1718848488183,1.26960248,65222.0,65221.0,0.015]
[1718848488390,1.93560948,65222.0,65221.0,0.015]
[1718848489189,1.93560948,65222.0,65221.0,0.011]
[1718848489593,0.153347,65212.0,65203.0,0.07628172]
[1718848489799,0.153347,65212.0,65202.0,0.68010439]
[1718848489800,0.836835,65203.0,65202.0,0.22241405]
[1718848490184,0.836835,65203.0,65198.0,0.020236]
[1718848490185,1.113082,65199.0,65198.0,0.020236]
[1718848490355,1.11785813,65199.0,65198.0,0.020236]
[1718848490579,1.22741336,65199.0,65198.0,0.020236]
[1718848490702,1.093698,65195.0,65194.0,0.009471]
[1718848490912,1.36059048,65195.0,65194.0,0.009471]
[1718848491135,1.59423948,65195.0,65194.0,0.009471]
[1718848491338,1.58423948,65195.0,65194.0,0.009471]
[1718848491546,1.59927948,65195.0,65194.0,0.009471]
[1718848492173,1.59927714,65195.0,65194.0,0.009471]
[1718848492373,1.58927714,65195.0,65194.0,0.009471]
[1718848492529,1.36562814,65195.0,65194.0,0.009471]
[1718848492937,2.27713314,65195.0,65194.0,0.009471]
[1718848493178,1.35562814,65195.0,65194.0,0.009471]
[1718848493546,1.35129912,65195.0,65194.0,0.009471]
[1718848493747,1.36562752,65195.0,65194.0,0.009471]
[1718848494009,1.54758152,65195.0,65194.0,0.009471]
[1718848494982,1.52858152,65195.0,65194.0,0.011471]
[1718848495183,1.35662752,65195.0,65194.0,0.011471]
[1718848495382,1.35707525,65195.0,65194.0,0.011471]
[1718848495642,2.08358125,65195.0,65194.0,0.011471]
[1718848495807,1.68059825,65195.0,65194.0,0.011471]